bitfinex/quotes_SOLUSD_20250814
["timestamp","ask_amount","ask_price","bid_price","bid_amount"]
[1755139782451,0.67,205.85,205.83,45.84]
[1755139782632,0.67,205.84,205.83,45.84]
[1755139782827,0.67,205.84,205.83,65.53449314]
[1755139783026,0.67,205.88,205.83,65.53449314]
[1755139783231,20.36449314,205.88,205.83,45.84]
[1755139783448,19.69449314,205.85,205.77,19.69449314]
[1755139783656,0.67,205.84,205.77,19.69449314]
[1755139783835,19.69449314,205.83,205.62,10.0]
[1755139784040,19.69449314,205.96,205.74,19.69449314]
[1755139784041,19.69449314,205.81,205.74,19.69449314]
[1755139784238,0.67,205.82,205.62,50.5]
[1755139784239,0.67,205.8,205.77,19.69449314]
[1755139784451,0.67,205.8,205.78,19.69449314]
[1755139784657,19.69449314,205.85,205.77,19.69449314]
[1755139784658,0.67,205.79,205.77,19.69449314]
[1755139784855,0.67,205.79,205.78,65.39449314]
[1755139785057,0.67,205.79,205.78,135.19449314]
[1755139785241,0.67,205.79,205.78,115.5]
[1755139785643,0.67,205.91,205.78,65.39449314]
[1755139785945,0.67,205.96,205.9,19.69449314]
[1755139786138,0.67,205.96,205.95,19.69449314]
[1755139786342,0.67,205.96,205.95,65.41449314]
[1755139786543,0.67,206.01,205.95,65.41449314]
[1755139786742,0.67,206.01,205.96,19.69449314]
[1755139786946,0.67,206.0,205.95,45.72]
[1755139787153,0.67,205.99,205.95,65.41449314]
[1755139787361,0.67,205.98,205.95,65.41449314]
[1755139787560,19.69449314,206.05,205.97,19.69449314]
[1755139787761,12.14271,206.06,205.99,19.69449314]
[1755139788061,0.67,206.05,205.95,45.72]
[1755139788256,0.67,206.05,205.99,19.69449314]
[1755139788666,0.67,206.05,205.99,28.436882]
[1755139788845,0.67,206.05,205.95,45.72]
[1755139789043,0.67,206.05,206.01,28.436882]
[1755139789270,0.67,206.04,206.02,45.56]
[1755139789464,12.14271,206.06,206.02,45.56]
[1755139789641,0.67,206.03,206.02,45.56]
[1755139791144,29.106882,206.03,205.81,10.0]
[1755139791357,12.14271,206.06,205.81,10.0]
[1755139791358,28.436882,206.01,205.93,28.436882]
[1755139791562,28.436882,206.02,205.94,28.436882]
[1755139791742,0.67,206.0,205.94,28.436882]
[1755139791945,0.67,206.0,205.96,28.436882]
[1755139792166,0.67,205.99,205.96,28.436882]
[1755139792460,0.67,205.98,205.97,45.26]
[1755139793056,0.67,205.98,205.94,28.436882]
[1755139793245,0.67,205.97,205.95,45.16]
[1755139793448,0.67,205.97,205.96,45.16]
[1755139793663,0.67,206.01,205.96,45.16]
[1755139793864,4.23346755,206.0,205.96,45.16]
[1755139794166,4.23346755,205.99,205.96,45.16]
[1755139794370,4.23346755,205.98,205.96,45.16]
[1755139794564,4.23346755,205.97,205.96,45.16]
[1755139794951,4.23346755,205.97,205.96,114.92]
[1755139796153,3.56346755,205.97,205.96,114.92]
[1755139797853,4.23346755,205.97,205.96,80.04]
[1755139798465,4.23346755,205.97,205.96,45.16]
[1755139799647,3.56346755,205.97,205.96,45.16]
[1755139800075,4.23346755,205.97,205.96,45.16]
[1755139800255,32.67034955,205.97,205.96,45.16]
[1755139800455,32.67034955,205.97,205.84,28.436882]
[1755139800766,28.436882,205.88,205.85,44.6]
[1755139800958,32.70034955,205.87,205.8,28.436882]
[1755139801155,32.70034955,205.87,205.72,2.52762503]
[1755139801156,3.56346755,205.86,205.81,73.016882]
[1755139801359,4.26346755,205.85,205.82,44.62]
[1755139801663,4.26346755,205.84,205.72,2.52762503]
[1755139801855,3.56346755,205.83,205.73,44.58]
[1755139802168,28.436882,205.89,205.72,2.52762503]
[1755139802371,28.436882,205.83,205.73,44.58]
[1755139802570,3.5924631,205.82,205.76,28.436882]
[1755139802755,3.5924631,205.82,205.73,44.58]
[1755139802756,3.5924631,205.81,205.77,28.436882]
[1755139802955,3.5924631,205.8,205.78,28.436882]
[1755139803274,3.5924631,205.79,205.65,10.0]
[1755139803457,0.7,205.83,205.78,28.436882]
[1755139803778,4.29176715,205.82,205.79,44.56]
[1755139803976,28.436882,205.8,205.71,2.53010325]
[1755139804153,28.436882,205.72,205.61,2.52450185]
[1755139804355,28.436882,205.7,205.63,28.436882]
[1755139804659,4.29176715,205.69,205.64,44.64]
[1755139804855,3.59176715,205.68,205.66,28.436882]
[1755139805053,0.7,205.69,205.67,69.8]
[1755139805364,3.58943952,205.68,205.67,34.9]
[1755139805566,32.72632152,205.68,205.41,10.0]
[1755139805769,28.436882,205.62,205.55,28.436882]
[1755139805966,4.28943952,205.61,205.56,35.24]
[1755139806166,3.58943952,205.6,205.56,35.24]
[1755139806368,3.58943952,205.6,205.55,28.436882]
[1755139806369,28.436882,205.57,205.42,5.06238127]
[1755139806574,28.436882,205.57,205.16,24.39237873]
[1755139806575,28.436882,205.51,205.37,3.85129941]
[1755139806759,29.136882,205.51,205.44,28.436882]
[1755139807072,29.136882,205.51,205.38,47.2109864]
[1755139807073,28.436882,205.5,205.4,2.53359801]
[1755139807274,28.436882,205.44,205.36,28.436882]
[1755139807476,28.436882,205.44,205.37,44.64]
[1755139807668,0.7,205.45,205.38,28.436882]
[1755139807984,29.136882,205.45,205.38,28.436882]
[1755139808161,29.136882,205.45,205.32,2.53405472]
[1755139808162,28.436882,205.42,205.32,2.53405472]
[1755139808369,29.136882,205.41,205.34,28.436882]
[1755139808560,0.7,205.41,205.35,28.436882]
[1755139808754,4.86341801,205.62,205.33,44.64]
[1755139808755,28.436882,205.44,205.33,44.64]
[1755139809063,28.436882,205.41,205.34,73.096882]
[1755139809278,0.7,205.4,205.35,44.64]
[1755139809577,29.136882,205.4,205.35,44.64]
[1755139809781,0.7,205.39,205.35,44.64]
[1755139810152,0.7,205.44,205.38,28.436882]
[1755139810565,0.7,205.44,205.4,28.436882]
[1755139810764,4.86134404,205.71,205.35,44.64]
[1755139810765,0.7,205.49,205.43,19.81601232]
[1755139811081,0.7,205.49,205.45,19.81601232]
[1755139811274,0.7,205.49,205.46,19.81601232]
[1755139811478,0.7,205.48,205.44,44.56]
[1755139811683,0.7,205.48,205.44,64.37601232]
[1755139811868,0.7,205.47,205.44,44.56]
[1755139812257,0.7,205.46,205.41,19.81601232]
[1755139812485,0.7,205.45,205.42,44.5]
[1755139812670,0.7,205.44,205.42,44.5]
[1755139812867,0.7,205.44,205.3,2.53091737]
[1755139812868,0.7,205.43,205.3,2.53091737]
[1755139813177,0.7,205.43,205.37,19.81601232]
[1755139813480,0.7,205.43,205.4,19.81601232]
[1755139813667,0.7,205.43,205.41,44.44]
[1755139814695,0.7,205.51,205.42,19.81601232]
[1755139814980,0.7,205.51,205.43,114.28]
[1755139815172,0.7,205.51,205.45,19.81601232]
[1755139815363,0.7,205.51,205.44,44.38]
[1755139816471,0.7,205.51,205.48,19.81601232]
[1755139816668,0.7,205.55,205.5,19.81601232]
[1755139816873,2.48300366,205.75,205.3,2.53091737]
[1755139816874,19.81601232,205.51,205.3,2.53091737]
[1755139817081,19.81601232,205.47,205.4,19.81601232]
[1755139817266,0.7,205.46,205.41,44.44]
[1755139817462,20.51601232,205.45,205.41,44.44]
[1755139817676,20.51601232,205.45,205.3,2.53091737]
[1755139817677,19.81601232,205.43,205.36,19.81601232]
[1755139817883,0.7,205.46,205.42,19.81601232]
[1755139818090,0.7,205.51,205.45,19.81601232]
[1755139818276,0.7,205.51,205.46,64.25601232]
[1755139818465,19.81601232,205.54,205.46,64.25601232]
[1755139818669,0.7,205.5,205.46,64.25601232]
[1755139818886,0.7,205.49,205.46,44.44]
[1755139819073,0.7,205.48,205.46,44.44]
[1755139819402,0.7,205.53,205.47,19.81601232]
[1755139819570,0.7,205.53,205.46,64.25601232]
[1755139819880,19.81601232,205.51,205.46,44.44]
[1755139820188,20.51601232,205.5,205.46,44.44]
[1755139820365,0.7,205.49,205.46,44.44]
[1755139820877,0.7,205.48,205.46,44.44]
[1755139821588,10.0,205.6,205.46,44.44]
[1755139821769,0.7,205.51,205.46,44.44]
[1755139821964,0.7,205.5,205.46,44.44]
[1755139822165,19.81601232,205.51,205.46,44.44]
[1755139822166,0.7,205.49,205.46,44.44]
[1755139822383,0.7,205.6,205.46,64.25601232]
[1755139822586,19.81601232,205.58,205.5,19.81601232]
[1755139822789,0.7,205.57,205.5,19.81601232]
[1755139823283,0.7,205.57,205.52,19.81601232]
[1755139823486,0.7,205.56,205.53,44.26]
[1755139823787,0.7,205.55,205.54,44.24]
[1755139824564,10.0,205.69,205.54,64.01601232]
[1755139824769,0.7,205.6,205.55,19.81601232]
[1755139824969,12.14684592,205.82,205.56,69.92]
[1755139824970,0.7,205.59,205.56,69.92]
[1755139825164,0.7,205.58,205.56,69.92]
[1755139826176,0.7,205.62,205.57,19.81601232]
[1755139826588,0.7,205.61,205.57,19.81601232]
[1755139826784,0.7,205.6,205.57,19.81601232]
[1755139827181,19.81601232,205.63,205.56,19.81601232]
[1755139827495,0.7,205.59,205.55,19.81601232]
[1755139828504,19.81601232,205.56,205.46,19.81601232]
[1755139828682,19.81601232,205.53,205.47,43.9]
[1755139828880,20.51601232,205.52,205.47,43.9]
[1755139829178,19.81601232,205.49,205.34,43.03304026]
[1755139829389,19.81601232,205.49,205.42,19.81601232]
[1755139829587,19.81601232,205.5,205.43,43.86]
[1755139829773,19.81601232,205.5,205.43,63.67601232]
[1755139829973,0.7,205.51,205.43,63.67601232]
[1755139829974,20.51601232,205.51,205.43,63.67601232]
[1755139830369,0.69,205.59,205.5,19.81601232]
[1755139830687,0.69,205.59,205.55,19.81601232]
[1755139830875,0.69,205.59,205.56,19.81601232]
[1755139831075,0.69,205.59,205.57,43.9]
[1755139831276,0.69,205.63,205.57,43.9]
[1755139831487,20.50601232,205.63,205.57,43.9]
[1755139831998,0.69,205.63,205.57,63.71601232]
[1755139832183,0.69,205.63,205.59,19.81601232]
[1755139832698,0.69,205.63,205.6,19.81601232]
[1755139833099,0.69,205.67,205.61,19.81601232]
[1755139833277,0.69,205.63,205.62,43.74]
[1755139834190,36.03533627,206.92,205.62,43.74]
[1755139834191,0.69,205.67,205.62,43.74]
[1755139834392,0.69,205.67,205.62,63.55601232]
[1755139834622,0.69,205.66,205.62,43.74]
[1755139834920,0.69,205.7,205.64,19.81601232]
[1755139835109,0.69,205.7,205.65,19.81601232]
[1755139835323,19.81601232,205.68,205.63,69.92]
[1755139835501,19.81601232,205.64,205.63,34.96]
[1755139835705,20.50601232,205.64,205.63,43.6]
[1755139836119,0.69,205.64,205.63,43.6]
[1755139836324,20.50601232,205.64,205.5,19.81601232]
[1755139836522,10.0,205.71,205.41,40.5]
[1755139836523,0.69,205.63,205.52,19.81601232]
[1755139836725,20.50601232,205.63,205.56,19.81601232]
[1755139836899,0.69,205.63,205.57,63.37601232]
[1755139837095,0.69,205.63,205.59,19.81601232]
[1755139837396,0.69,205.63,205.56,19.81601232]
[1755139837397,0.69,205.62,205.56,19.81601232]
[1755139837621,0.69,205.62,205.57,19.81601232]
[1755139838318,0.69,205.66,205.59,19.81601232]
[1755139838504,19.81601232,205.65,205.58,63.29601232]
[1755139838704,19.81601232,205.64,205.59,43.46]
[1755139838905,0.69,205.63,205.59,43.46]
[1755139839422,19.81601232,205.64,205.59,43.46]
[1755139839733,0.69,205.62,205.59,43.46]
[1755139842230,20.50601232,205.61,205.54,19.81601232]
[1755139842532,0.69,205.61,205.55,43.22]
[1755139842715,0.69,205.61,205.55,63.03601232]
[1755139843029,0.69,205.61,205.55,43.22]
[1755139843229,20.50601232,205.64,205.56,19.81601232]
[1755139843412,3.57770109,205.63,205.56,19.81601232]
[1755139843605,20.50601232,205.64,205.56,19.81601232]
[1755139843806,3.57775237,205.63,205.58,19.81601232]
[1755139844003,19.81601232,205.59,205.55,43.22]
[1755139844206,19.81601232,205.56,205.48,19.81601232]
[1755139844414,19.81601232,205.54,205.49,43.12]
[1755139844625,19.81601232,205.55,205.49,43.12]
[1755139844801,19.81601232,205.54,205.49,43.12]
[1755139845002,20.50601232,205.54,205.5,69.92]
[1755139845446,19.81601232,205.55,205.5,69.92]
[1755139845732,19.81601232,205.55,205.4,43.03252981]
[1755139845733,19.81601232,205.52,205.51,112.98]
[1755139845927,4.2781451,205.52,205.51,78.02]
[1755139846226,3.5881451,205.52,205.51,43.06]
[1755139846433,3.58897293,205.52,205.51,43.06]
[1755139848220,3.58897293,205.52,205.51,62.87601232]
[1755139848423,3.58897293,205.52,205.51,19.81601232]
[1755139848604,3.58897293,205.52,205.51,42.88]
[1755139849910,3.58897293,205.52,205.39,60.31601232]
[1755139850127,3.58897293,205.51,205.5,19.81601232]
[1755139850512,4.27897293,205.51,205.5,42.76]
[1755139850714,24.09498525,205.51,205.5,42.76]
[1755139851411,4.27897293,205.51,205.5,42.76]
[1755139851614,24.09498525,205.51,205.5,42.76]
[1755139852520,24.09498525,205.51,205.5,42.64]
[1755139853123,4.27897293,205.51,205.5,42.6]
[1755139853329,24.09498525,205.51,205.5,42.6]
[1755139854121,4.27897293,205.51,205.5,42.6]
[1755139854435,3.58897293,205.51,205.5,62.41601232]
[1755139854918,3.58897293,205.51,205.5,97.37601232]
[1755139855126,3.58897293,205.51,205.5,132.33601232]
[1755139855323,3.61252821,205.51,205.5,112.52]
[1755139855519,3.61252821,205.51,205.5,132.33601232]
[1755139855720,3.61252821,205.51,204.18,66.52677465]
[1755139855721,24.11854053,205.51,205.43,19.81601232]
[1755139856042,19.81601232,205.49,205.44,42.48]
[1755139856212,3.61252821,205.48,205.44,42.48]
[1755139856416,3.61252821,205.47,205.44,42.48]
[1755139856614,0.69,205.49,205.44,42.48]
[1755139856827,3.61381519,205.48,205.44,42.48]
[1755139857036,3.61381519,205.47,205.44,42.48]
[1755139857233,20.50601232,205.48,205.42,19.81601232]
[1755139857532,3.6139605,205.47,205.42,19.81601232]
[1755139857928,3.6139605,205.47,205.41,19.81601232]
[1755139858322,20.50601232,205.48,205.41,19.81601232]
[1755139858732,0.69,205.48,205.42,19.81601232]
[1755139859035,0.69,205.52,205.44,19.81601232]
[1755139859227,3.61464113,205.51,205.45,62.09601232]
[1755139859746,3.61464113,205.51,205.46,19.81601232]
[1755139860037,4.30464113,205.51,205.45,62.09601232]
[1755139860244,19.81601232,205.52,205.46,19.81601232]
[1755139860462,3.61570663,205.51,205.46,19.81601232]
[1755139860742,19.81601232,205.49,205.43,19.81601232]
[1755139861045,19.81601232,205.44,205.3,40.5]
[1755139861218,19.81601232,205.43,205.37,19.81601232]
[1755139861418,19.81601232,205.43,205.38,42.18]
[1755139861619,0.72,205.42,205.38,42.18]
[1755139862238,19.81601232,205.45,205.39,19.81601232]
[1755139862427,19.81601232,205.45,205.38,61.99601232]
[1755139862630,19.81601232,205.42,205.38,42.18]
[1755139862830,0.72,205.41,205.39,42.12]
[1755139863241,19.81601232,205.43,205.39,42.12]
[1755139863433,0.72,205.43,205.39,42.12]
[1755139863747,0.72,205.43,205.39,61.93601232]
[1755139864246,20.53601232,205.47,205.41,19.81601232]
[1755139864645,0.72,205.51,205.46,19.81601232]
[1755139864822,0.72,205.5,205.47,42.04]
[1755139865027,0.72,205.5,205.48,69.96]
[1755139867235,0.72,205.54,205.48,89.77601232]
[1755139867443,20.53601232,205.54,205.48,69.96]
[1755139867642,19.81601232,205.49,205.48,34.98]
[1755139867944,20.53601232,205.49,205.42,19.81601232]
[1755139868142,20.53601232,205.49,205.39,40.5]
[1755139868143,0.72,205.49,205.43,61.71601232]
[1755139868454,0.72,205.49,205.44,19.81601232]
[1755139869351,19.81601232,205.49,205.43,41.9]
[1755139869547,10.0,205.61,205.43,41.9]
[1755139869548,19.81601232,205.46,205.43,41.9]
[1755139869856,0.72,205.45,205.44,41.8]
[1755139870057,0.72,205.45,205.39,19.81601232]
[1755139870631,0.72,205.45,205.4,41.78]
[1755139870834,0.72,205.45,205.4,61.59601232]
[1755139871032,0.72,205.45,205.4,41.78]
[1755139871450,0.72,205.44,205.4,41.78]
[1755139871655,0.72,205.44,205.39,19.81601232]
[1755139871656,0.72,205.44,205.41,41.76]
[1755139871956,0.72,205.44,205.39,19.81601232]
[1755139872445,0.72,205.47,205.41,19.81601232]
[1755139872631,20.53601232,205.47,205.4,61.57601232]
[1755139873250,0.72,205.47,205.41,19.81601232]
[1755139873429,0.72,205.47,205.42,41.76]
[1755139873430,0.72,205.46,205.42,41.76]
[1755139873635,0.72,205.45,205.42,41.76]
[1755139873835,0.72,205.44,205.42,41.76]
[1755139874443,20.53601232,205.48,205.42,41.76]
[1755139875157,20.53601232,205.48,205.43,69.96]
[1755139875360,0.72,205.48,205.43,69.96]
[1755139875742,19.81601232,205.51,205.43,69.96]
[1755139875951,19.81601232,205.49,205.43,34.98]
[1755139876155,19.81601232,205.49,205.42,61.57601232]
[1755139876366,20.53601232,205.5,205.43,19.81601232]
[1755139876655,16.43904045,205.63,205.47,19.81601232]
[1755139876656,0.72,205.55,205.47,19.81601232]
[1755139876863,0.72,205.55,205.52,19.81601232]
[1755139877070,0.72,205.59,205.53,41.76]
[1755139877549,0.72,205.59,205.53,61.57601232]
[1755139878859,0.72,205.59,205.53,41.76]
[1755139879051,0.72,205.59,205.53,61.57601232]
[1755139879358,0.72,205.65,205.58,19.81601232]
[1755139879539,19.81601232,205.63,205.59,41.76]
[1755139879737,0.72,205.63,205.6,41.76]
[1755139880054,19.81601232,205.65,205.6,41.76]
[1755139880359,0.72,205.65,205.6,41.76]
[1755139880736,0.72,205.65,205.6,61.57601232]
[1755139881462,0.72,205.65,205.6,41.76]
[1755139881862,0.72,205.65,205.6,217.06]
[1755139882961,0.72,205.65,205.6,236.87601232]
[1755139883470,19.81601232,205.63,205.6,175.3]
[1755139883658,19.81601232,205.61,205.6,175.3]
[1755139883965,20.53601232,205.61,205.6,82.24]
[1755139884346,0.72,205.61,205.6,82.24]
[1755139884546,3.96887076,205.78,205.6,82.24]
[1755139884547,0.72,205.68,205.6,102.05601232]
[1755139884753,0.72,205.68,205.61,19.81601232]
[1755139884953,20.53601232,205.68,205.62,69.92]
[1755139885154,20.53601232,205.68,205.63,41.74]
[1755139885354,0.72,205.67,205.63,41.74]
[1755139885757,0.72,205.7,205.63,41.74]
[1755139885955,20.53601232,205.7,205.63,61.55601232]
[1755139886151,19.81601232,205.69,205.63,41.74]
[1755139886369,20.53601232,205.68,205.63,175.3]
[1755139886573,0.72,205.67,205.64,41.72]
[1755139886950,0.72,205.67,205.64,40.5]
[1755139887168,0.72,205.67,205.65,41.72]
[1755139887360,0.72,205.67,205.65,82.22]
[1755139887759,2.52915334,205.86,205.55,3.95952766]
[1755139887760,0.72,205.76,205.66,19.81601232]
[1755139887953,0.72,205.76,205.55,3.95952766]
[1755139887954,19.81601232,205.69,205.67,41.72]
[1755139888274,19.81601232,205.7,205.68,41.72]
[1755139888580,19.81601232,205.73,205.69,41.72]
[1755139888880,19.81601232,205.7,205.61,19.81601232]
[1755139889171,19.81601232,205.68,205.62,41.72]
[1755139889474,19.81601232,205.68,205.63,41.72]
[1755139889678,19.81601232,205.68,205.56,2.3815032]
[1755139889679,0.72,205.68,205.62,19.81601232]
[1755139890049,0.72,205.68,205.63,41.72]
[1755139890271,0.72,205.68,205.62,19.81601232]
[1755139890575,0.72,205.68,205.63,41.72]
[1755139890762,0.72,205.68,205.64,41.72]
[1755139890963,0.72,205.68,205.65,41.72]
[1755139891260,0.72,205.68,205.55,3.88402769]
[1755139891475,0.72,205.68,205.6,19.81601232]
[1755139891476,20.53601232,205.68,205.6,19.81601232]
[1755139891850,19.81601232,205.77,205.39,48.91601232]
[1755139891851,19.81601232,205.61,205.5,19.81601232]
[1755139892162,19.81601232,205.56,205.51,41.7]
[1755139892356,20.48601232,205.56,205.52,41.7]
[1755139892679,0.67,205.55,205.49,13.06238961]
[1755139892873,0.67,205.55,205.5,41.7]
[1755139893246,0.67,205.55,205.47,13.06238961]
[1755139893247,13.06238961,205.54,205.47,13.06238961]
[1755139893672,13.06238961,205.54,205.48,41.7]
[1755139893869,0.67,205.58,205.49,13.06238961]
[1755139894380,13.06238961,205.57,205.5,13.06238961]
[1755139894761,19.80301528,205.57,205.5,19.80301528]
[1755139894962,19.80301528,205.57,205.51,69.88]
[1755139895168,19.80301528,205.56,205.51,69.88]
[1755139895373,20.47301528,205.55,205.51,69.88]
[1755139895553,19.80301528,205.52,205.51,69.88]
[1755139895878,20.47301528,205.52,205.51,76.64]
[1755139896062,20.47301528,205.52,205.51,41.7]
[1755139896584,0.67,205.55,205.51,41.7]
[1755139896755,19.80301528,205.53,205.51,41.7]
[1755139896954,20.47301528,205.52,205.51,41.7]
[1755139897971,20.47301528,205.52,205.42,19.80301528]
[1755139898283,19.80301528,205.48,205.43,41.7]
[1755139898453,20.47301528,205.48,205.44,41.7]
[1755139898774,19.80301528,205.48,205.44,41.7]
[1755139898952,20.47301528,205.56,205.47,19.80301528]
[1755139899152,20.47301528,205.56,205.49,19.80301528]
[1755139899352,19.80301528,205.55,205.5,41.7]
[1755139899553,19.80301528,205.51,205.42,19.80301528]
[1755139899779,19.80301528,205.49,205.43,41.7]
[1755139899964,20.47301528,205.5,205.43,61.50301528]
[1755139900352,20.47301528,205.5,205.43,19.80301528]
[1755139900552,20.47301528,205.5,205.44,41.7]
[1755139900757,19.80301528,205.49,205.44,41.7]
[1755139901173,0.67,205.49,205.44,41.7]
[1755139901577,20.47301528,205.52,205.45,19.80301528]
[1755139903379,19.80301528,205.48,205.44,41.7]
[1755139903580,0.67,205.47,205.45,41.68]
[1755139903880,20.47301528,205.47,205.46,41.68]
[1755139904079,0.67,205.47,205.46,41.68]
[1755139904380,19.80301528,205.49,205.46,41.68]
[1755139904577,20.47301528,205.49,205.46,41.68]
[1755139904985,20.47301528,205.49,205.47,69.92]
[1755139905170,19.80301528,205.48,205.47,69.92]
[1755139905370,20.47301528,205.49,205.47,69.92]
[1755139905567,19.80301528,205.58,205.47,69.92]
[1755139905765,19.80301528,205.48,205.47,69.92]
[1755139906385,20.47301528,205.48,205.47,69.92]
[1755139910376,20.47301528,205.48,205.46,41.68]
[1755139910377,20.47301528,205.48,205.24,10.0]
[1755139910573,0.67,205.47,205.33,19.80301528]
[1755139910778,19.80301528,205.4,205.34,41.66]
[1755139910976,19.80301528,205.41,205.35,19.80301528]
[1755139911181,19.80301528,205.41,205.34,41.66]
[1755139911498,10.0,205.54,205.35,19.80301528]
[1755139911701,19.80301528,205.44,205.37,19.80301528]
[1755139911999,19.80301528,205.44,205.38,41.66]
[1755139912194,0.67,205.45,205.38,41.66]
[1755139912397,19.80301528,205.46,205.39,19.80301528]
[1755139912881,0.67,205.48,205.42,19.80301528]
[1755139913080,0.67,205.48,205.43,41.66]
[1755139913081,20.47301528,205.48,205.43,41.66]
[1755139913283,20.47301528,205.48,205.44,41.66]
[1755139913778,22.28431574,205.58,205.44,41.66]
[1755139913779,19.80301528,205.5,205.44,41.66]
[1755139913985,20.47301528,205.51,205.44,61.46301528]
[1755139914285,20.47301528,205.51,205.45,19.80301528]
[1755139914697,0.67,205.51,205.44,19.80301528]
[1755139914992,0.67,205.51,205.45,69.96]
[1755139915295,0.67,205.51,205.46,61.46301528]
[1755139915597,19.80301528,205.53,205.47,19.80301528]
[1755139915776,0.67,205.54,205.48,19.80301528]
[1755139915964,20.47301528,205.54,205.48,168.2]
[1755139916378,0.67,205.54,205.48,168.2]
[1755139916587,0.67,205.54,205.48,188.00301528]
[1755139916792,0.67,205.54,205.48,181.26334148]
[1755139918373,13.73334148,205.54,205.48,168.2]
[1755139919473,0.67,205.54,205.49,13.06334148]
[1755139919669,4.86193138,205.68,205.52,13.06334148]
[1755139919670,13.73334148,205.59,205.52,13.06334148]
[1755139919890,13.06334148,205.58,205.53,41.62]
[1755139920093,0.67,205.58,205.53,41.62]
[1755139920283,13.73334148,205.58,205.53,41.62]
[1755139920484,0.71,205.6,205.53,54.68334148]
[1755139920796,0.71,205.6,205.54,13.06334148]
[1755139921174,0.71,205.6,205.46,33.4]
[1755139921379,13.77334148,205.6,205.47,41.62]
[1755139922474,13.06334148,205.59,205.47,41.62]
[1755139922778,0.71,205.6,205.47,41.62]
[1755139922978,13.06334148,205.59,205.47,41.62]
[1755139923380,0.71,205.6,205.47,41.62]
[1755139923381,13.06334148,205.5,205.47,33.4]
[1755139923598,13.06334148,205.49,205.43,33.4]
[1755139923775,0.71,205.5,205.43,33.4]
[1755139923776,13.06334148,205.48,205.43,33.4]
[1755139923975,13.06334148,205.46,205.44,41.6]
[1755139924183,13.06334148,205.48,205.44,41.6]
[1755139924397,13.06334148,205.6,205.44,41.6]
[1755139924398,13.06334148,205.52,205.45,13.06334148]
[1755139924587,13.06334148,205.6,205.45,13.06334148]
[1755139924588,13.06334148,205.5,205.45,168.2]
[1755139924792,13.77334148,205.49,205.45,168.2]
[1755139924995,13.06334148,205.51,205.46,69.96]
[1755139925197,13.77334148,205.51,205.46,69.96]
[1755139925789,13.77334148,205.51,205.46,238.16]
[1755139926187,13.06334148,205.5,205.46,238.16]
[1755139926397,13.77334148,205.51,205.46,238.16]
[1755139926703,0.71,205.51,205.46,238.16]
[1755139926998,13.77334148,205.59,205.5,13.06334148]
[1755139927194,0.71,205.59,205.53,13.06334148]
[1755139928102,13.06334148,205.56,205.5,166.3]
[1755139928402,0.71,205.56,205.51,41.58]
[1755139929180,0.71,205.55,205.51,41.58]
[1755139929586,0.71,205.54,205.51,41.58]
[1755139929885,4.86218882,205.67,205.59,17.72665852]
[1755139930090,3.60669672,205.66,205.6,41.56]
[1755139930487,3.60669672,205.65,205.6,41.56]
[1755139930707,14.86192512,205.68,205.6,41.56]
[1755139930708,3.60669672,205.64,205.6,41.56]
[1755139930903,3.60783258,205.63,205.6,41.56]
[1755139931203,13.06334148,205.61,205.59,142.52665852]
[1755139931384,16.67117406,205.6,205.59,7.72665852]
[1755139931584,29.73451554,205.6,205.47,142.52665852]